fUSD/lending_fUSD_20260409
["ID","MTS","AMOUNT","RATE_DAILY","PERIOD"]
[420163421,1775741447337,-500.0,0.00013698,2]
[420163423,1775741447346,-500.0,0.00013698,2]
[420163424,1775741447355,-500.0,0.00013698,2]
[420163427,1775741447365,-500.0,0.00013698,2]
[420163429,1775741447375,-500.0,0.00013698,2]
[420163431,1775741447385,-500.0,0.00013698,2]
[420163433,1775741447394,-500.0,0.00013698,2]
[420163435,1775741447404,-500.0,0.00013698,2]
[420163437,1775741447414,-500.0,0.00013698,2]
[420163440,1775741447423,-500.0,0.00013698,2]
[420163442,1775741447432,-500.0,0.00013698,2]
[420163444,1775741447442,-500.0,0.00013698,2]
[420163446,1775741447451,-500.0,0.00013698,2]
[420163449,1775741447460,-4165.98,0.00013698,2]
[420163451,1775741447470,-1359.55972767,0.00013698,2]
[420163453,1775741447483,-322.94797957,0.00013698,2]
[420163509,1775741447997,-150.0,0.000107,2]
[420163511,1775741448006,-173.1369,0.00012,2]
[420163513,1775741448016,-2483.47229276,0.00013698,2]
[420163515,1775741448026,-3735.32318538,0.00013698,2]
[420163517,1775741448038,-430.65681462,0.00013698,2]
[420163519,1775741448048,-4.08318538,0.00013698,2]
[420163611,1775741473190,499.795,0.000161,120]
[420163616,1775741708386,175.0,7.945e-05,2]
[420163621,1775742330119,-645.181258,0.00010646,2]
[420163622,1775742330141,-1679.41638005,0.000107,5]
[420163623,1775742434100,-169.2403155,0.000107,5]
[420163631,1775742632516,-3684.0,0.000107,5]
[420163632,1775742632526,-250.0,0.0001079,2]
[420163633,1775742632536,-150.0,0.0001088,2]
[420163634,1775742632546,-218.0,0.0001096,2]
[420163635,1775742632556,-267.79541215,0.00010961,2]
[420163636,1775742632566,-300.0,0.00011081,2]
[420163637,1775742632575,-222.56525066,0.00011082,2]
[420163638,1775742632585,-500.0,0.00011082,2]
[420163639,1775742632595,-578.20924308,0.00011082,2]
[420163640,1775742632605,-205.09278459,0.00011108,2]
[420163641,1775742632615,-500.0,0.00011137,2]
[420163642,1775742632625,-1116.0,0.00011175,2]
[420163644,1775742632636,-170.38230801,0.0001118,2]
[420163646,1775742632647,-500.0,0.00011192,2]
[420163648,1775742632656,-150.0,0.000112,2]
[420163649,1775742632666,-500.0,0.00011247,2]
[420163651,1775742632676,-500.0,0.00011302,2]
[420163652,1775742632689,-339.0,0.00011333,2]
[420163653,1775742632699,-500.0,0.00011357,2]
[420163654,1775742632711,-152.0,0.00011403,3]
[420163655,1775742632722,-500.0,0.00011412,2]
[420163657,1775742632732,-500.0,0.00011467,2]
[420163658,1775742632743,-1500.0,0.00011474,2]
[420163659,1775742632753,-150.0,0.00011486,2]
[420163660,1775742632763,-601.3376128,0.00011487,2]
[420163661,1775742632774,-200.0,0.00011487,2]
[420163662,1775742632784,-1191.11104075,0.00011487,2]
[420163663,1775742632795,-500.0,0.00011487,2]
[420163664,1775742632805,-743.50770149,0.00011487,2]
[420163665,1775742632815,-1500.0,0.00011487,2]
[420163666,1775742632826,-1500.0,0.00011487,2]
[420163667,1775742632836,-1500.0,0.00011487,2]
[420163668,1775742632847,-1500.0,0.00011487,2]
[420163669,1775742632858,-1500.0,0.00011487,2]
[420163670,1775742632869,-1500.0,0.00011487,2]
[420163671,1775742632879,-1255.90872605,0.00011487,2]
[420163672,1775742632890,-174.61919141,0.00011487,2]
[420163673,1775742632901,-578.20924308,0.00011487,2]
[420163674,1775742632911,-279.9045709,0.00011487,2]
[420163675,1775742632922,-500.0,0.00011499,2]
[420163676,1775742632931,-500.0,0.00011522,2]
[420163677,1775742632941,-1806.18,0.00011567,2]
[420163678,1775742632951,-500.0,0.00011577,2]
[420163679,1775742632960,-3926.93,0.0001161,2]
[420163680,1775742632970,-500.0,0.00011632,2]
[420163681,1775742632981,-2000.0,0.00011662,2]
[420163682,1775742632991,-500.0,0.00011687,2]
[420163683,1775742633001,-500.0,0.00011687,2]
[420163684,1775742633011,-1600.0,0.00011696,2]
[420163685,1775742633021,-150.0,0.00011719,2]
[420163686,1775742633032,-500.0,0.00011742,2]
[420163687,1775742633042,-1116.0,0.00011763,2]
[420163688,1775742633059,-2500.0,0.0001177,2]
[420163689,1775742633070,-1302.91429866,0.0001177,2]
[420163690,1775742633085,-1197.08570134,0.0001177,2]
[420163691,1775742633096,-2500.0,0.0001177,2]
[420163692,1775742633106,-30.40822403,0.0001177,2]
[420163693,1775742633120,-2469.59177597,0.0001177,2]
[420163694,1775742633130,-439.03464126,0.0001177,2]
[420163695,1775742633314,-160.96535874,0.0001177,2]
[420163696,1775742633325,-600.0,0.0001177,2]
[420163697,1775742633334,-449.21164961,0.0001177,2]
[420163698,1775742633344,-600.0,0.0001177,2]
[420163699,1775742633355,-600.0,0.0001177,2]
[420163700,1775742633365,-2500.0,0.0001177,2]
[420163701,1775742633374,-250.0,0.0001177,2]
[420163702,1775742633384,-433.09,0.00011773,2]
[420163703,1775742633394,-41.02339351,0.00011797,2]
[420163704,1775742633419,-458.97660649,0.00011797,2]
[420163705,1775742633430,-200.0,0.00011806,2]
[420163706,1775742633439,-500.0,0.00011852,2]
[420163707,1775742633449,-500.0,0.00011907,2]
[420163708,1775742633459,-200.0,0.00012035,2]
[420163709,1775742633469,-1235.18214925,0.00012035,2]
[420163710,1775742633478,-771.01748645,0.00012035,2]
[420163711,1775742633488,-181.08010149,0.00012035,2]
[420163712,1775742633498,-269.24240896,0.00012035,2]
[420163713,1775742633507,-214.11598379,0.00012035,2]
[420163714,1775742633516,-4995.24545176,0.00012087,2]
[420163715,1775742633528,-439.78,0.00012087,2]
[420163716,1775742633568,-1085.56,0.00012087,2]
[420163724,1775742638481,-150.0,0.000111,2]
[420163726,1775742638492,-1325.85041645,0.00012087,2]
[420163730,1775742641284,-3910.09413179,0.00012087,2]
[420163731,1775742641294,-227.18846594,0.00012176,2]
[420163732,1775742641384,-192.81153406,0.00012176,2]
[420163733,1775742641394,-603.56625049,0.00012383,2]
[420163734,1775742641406,-267.24719955,0.00012383,2]
[420163735,1775742641479,-245.18654996,0.00012383,2]
[420163736,1775742641489,-722.94139412,0.000124,2]
[420163738,1775742641633,-429.19235665,0.000124,2]
[420163804,1775742642483,-76.06624923,0.000124,2]
[420163806,1775742642494,-173.0174,0.000125,2]
[420163808,1775742642504,-152.0,0.00012513,4]
[420163809,1775742642514,-255.0,0.00012554,2]
[420163810,1775742642524,-200.0,0.00012583,2]
[420163811,1775742642533,-1280.88388878,0.00012583,2]
[420163812,1775742642543,-799.54513345,0.00012583,2]
[420163813,1775742642553,-187.78006525,0.00012583,2]
[420163814,1775742642563,-159.0,0.00013,2]
[420163815,1775742642572,-159.0,0.00013,2]
[420163816,1775742642581,-159.0,0.00013,2]
[420163817,1775742642591,-1116.0,0.00013002,2]
[420163818,1775742642601,-502.0,0.000131,2]
[420163820,1775742642612,-16044.70726329,0.0001311,2]
[420163834,1775742644566,-2000.0,0.0001312,2]
[420163835,1775742644576,-200.0,0.00013131,2]
[420163836,1775742644586,-551.85208557,0.00013131,2]
[420163866,1775742647579,-381.94310497,0.00013131,2]
[420163867,1775742647601,-394.48140212,0.00013131,2]
[420163868,1775742647611,-829.12830338,0.00013131,2]
[420163869,1775742647621,-194.72792766,0.00013131,2]
[420163870,1775742647630,-304.13455165,0.00013137,2]
[420163871,1775742647640,-1600.0,0.00013158,2]
[420163872,1775742647649,-168.39,0.00013205,2]
[420163873,1775742647659,-150.0,0.00013261,2]
[420163874,1775742647669,-150.0,0.00013261,2]
[420163875,1775742647678,-223.44111523,0.00013261,2]
[420163876,1775742647688,-168.4,0.00013285,2]
[420163877,1775742647698,-258.06796644,0.0001332,2]
[420163878,1775742647708,-587.0,0.00013379,2]
[420163879,1775742647717,-1159.0,0.0001338,2]
[420163880,1775742647726,-1159.0,0.00013404,2]
[420163881,1775742647736,-234.869245,0.00013425,2]
[420163882,1775742647746,-410.670087,0.00013425,2]
[420163883,1775742647755,-182.201596,0.00013425,2]
[420163884,1775742647765,-425.927708,0.00013425,2]
[420163885,1775742647775,-1159.0,0.00013432,2]
[420163886,1775742647784,-8365.73974386,0.000135,2]
[420163887,1775742647795,-3000.0,0.00013518,2]
[420163888,1775742647804,-2000.0,0.0001356,2]
[420163889,1775742647813,-2000.0,0.0001356,2]
[420163890,1775742647823,-2000.0,0.0001358,2]
[420163891,1775742647832,-2500.0,0.00013598,2]
[420163892,1775742647841,-1000.0,0.00013599,2]
[420163893,1775742647851,-2107.5191,0.00013599,2]
[420163894,1775742647861,-4155.12597028,0.00013599,2]
[420163895,1775742647871,-9232.51442349,0.00013599,2]
[420163896,1775742647880,-159.0,0.000136,2]
[420163897,1775742647889,-159.0,0.000136,2]
[420163898,1775742647898,-159.0,0.000136,2]
[420163899,1775742647909,-238.86224178,0.00013613,2]
[420163900,1775742647919,-152.0,0.00013623,5]
[420163901,1775742647929,-151.0,0.00013637,2]
[420163902,1775742647939,-1116.0,0.00013652,2]
[420163903,1775742647948,-1000.0,0.00013658,2]
[420163904,1775742647958,-1377.42282659,0.00013679,2]
[420163905,1775742647968,-200.0,0.00013679,2]
[420163906,1775742647977,-979.23599341,0.00013679,2]
[420163907,1775742647987,-201.93286099,0.00013679,2]
[420163908,1775742647997,-243.66721124,0.00013689,2]
[420163909,1775742648007,-500.0,0.00013692,2]
[420163910,1775742648016,-151.0,0.00013696,2]
[420163911,1775742648026,-214.26260019,0.00013698,2]
[420163912,1775742648394,-500.0,0.00013698,2]
[420163913,1775742648431,-500.0,0.00013698,2]
[420163914,1775742648442,-500.0,0.00013698,2]
[420163915,1775742648452,-155.385,0.00013698,2]
[420163916,1775742648461,-500.0,0.00013698,2]
[420163917,1775742648471,-500.0,0.00013698,2]
[420163918,1775742648481,-500.0,0.00013698,2]
[420163919,1775742648490,-500.0,0.00013698,2]
[420163920,1775742648499,-494.56619197,0.00013698,2]
[420163921,1775742648509,-500.0,0.00013698,2]
[420163922,1775742648519,-500.0,0.00013698,2]
[420163923,1775742648529,-300.8173836,0.00013698,2]
[420163924,1775742648538,-175.22,0.00013698,2]
[420163925,1775742648547,-500.0,0.00013698,2]
[420163926,1775742648557,-500.0,0.00013698,2]
[420163927,1775742648566,-500.0,0.00013698,2]
[420163928,1775742648576,-500.0,0.00013698,2]
[420163929,1775742648588,-500.0,0.00013698,2]
[420163930,1775742648598,-279.58838445,0.00013698,2]
[420163931,1775742648608,-500.0,0.00013698,2]
[420163932,1775742648618,-500.0,0.00013698,2]
[420163933,1775742648628,-437.03396529,0.00013698,2]
[420163934,1775742648638,-769.88,0.00013698,2]
[420163935,1775742648649,-769.88,0.00013698,2]
[420163936,1775742648658,-769.88,0.00013698,2]
[420163937,1775742648668,-769.88,0.00013698,2]
[420163938,1775742648678,-769.88,0.00013698,2]
[420163939,1775742648688,-769.88,0.00013698,2]
[420163940,1775742648698,-769.88,0.00013698,2]
[420163941,1775742648707,-769.88,0.00013698,2]
[420163942,1775742648717,-769.88,0.00013698,2]
[420163943,1775742648726,-769.88,0.00013698,2]
[420163944,1775742648736,-769.88,0.00013698,2]
[420163945,1775742648747,-769.88,0.00013698,2]
[420163946,1775742648756,-504.59,0.00013698,2]
[420163947,1775742648766,-504.59,0.00013698,2]
[420163948,1775742648776,-504.59,0.00013698,2]
[420163949,1775742648786,-504.59,0.00013698,2]
[420163950,1775742648797,-500.0,0.00013698,2]
[420163951,1775742648807,-500.0,0.00013698,2]
[420163952,1775742648818,-500.0,0.00013698,2]
[420163953,1775742648828,-500.0,0.00013698,2]
[420163954,1775742648838,-500.0,0.00013698,2]
[420163955,1775742648848,-500.0,0.00013698,2]
[420163956,1775742648857,-500.0,0.00013698,2]
[420163957,1775742648868,-169.54971223,0.00013698,2]
[420163958,1775742648878,-500.0,0.00013698,2]
[420163959,1775742648887,-371.05654595,0.00013698,2]
[420163960,1775742648898,-500.0,0.00013698,2]
[420163961,1775742648908,-500.0,0.00013698,2]
[420163962,1775742648917,-500.0,0.00013698,2]
[420163963,1775742648927,-500.0,0.00013698,2]
[420163964,1775742648937,-500.0,0.00013698,2]
[420163965,1775742648947,-255.62360837,0.00013698,2]
[420163966,1775742648957,-500.0,0.00013698,2]
[420163967,1775742648967,-500.0,0.00013698,2]
[420163968,1775742648977,-592.47707895,0.00013698,2]
[420163969,1775742648988,-500.0,0.00013698,2]
[420163970,1775742648999,-500.0,0.00013698,2]
[420163971,1775742649009,-500.0,0.00013698,2]
[420163972,1775742649019,-500.0,0.00013698,2]
[420163973,1775742649029,-500.0,0.00013698,2]
[420163974,1775742649040,-247.31324285,0.00013698,2]
[420163975,1775742649050,-500.0,0.00013698,2]
[420163976,1775742649061,-2000.0,0.00013698,2]
[420163977,1775742649071,-2000.0,0.00013698,2]
[420163978,1775742649081,-2000.0,0.00013698,2]
[420163979,1775742649092,-500.0,0.00013698,2]
[420163980,1775742649102,-500.0,0.00013698,2]
[420163981,1775742649113,-500.0,0.00013698,2]
[420163982,1775742649123,-500.0,0.00013698,2]
[420163983,1775742649134,-500.0,0.00013698,2]
[420163984,1775742649144,-500.0,0.00013698,2]
[420163985,1775742649153,-500.0,0.00013698,2]
[420163986,1775742649163,-500.0,0.00013698,2]
[420163987,1775742649173,-196.46126637,0.00013698,2]
[420163988,1775742649185,-3904.18,0.00013698,2]
[420163989,1775742649195,-3904.18,0.00013698,2]
[420163990,1775742649204,-3904.18,0.00013698,2]
[420163991,1775742649215,-572.94,0.00013698,2]
[420163992,1775742649224,-572.94,0.00013698,2]
[420163993,1775742649235,-572.94,0.00013698,2]
[420163994,1775742649245,-572.94,0.00013698,2]
[420163995,1775742649254,-500.0,0.00013698,2]
[420163996,1775742649263,-500.0,0.00013698,2]
[420163997,1775742649273,-500.0,0.00013698,2]
[420163998,1775742649282,-500.0,0.00013698,2]
[420163999,1775742649292,-500.0,0.00013698,2]
[420164000,1775742649301,-500.0,0.00013698,2]
[420164001,1775742649311,-500.0,0.00013698,2]
[420164002,1775742649322,-500.0,0.00013698,2]
[420164003,1775742649331,-500.0,0.00013698,2]
[420164004,1775742649341,-500.0,0.00013698,2]
[420164005,1775742649351,-500.0,0.00013698,2]
[420164006,1775742649361,-500.0,0.00013698,2]
[420164007,1775742649371,-500.0,0.00013698,2]
[420164008,1775742649380,-500.0,0.00013698,2]
[420164009,1775742649390,-500.0,0.00013698,2]
[420164010,1775742649399,-500.0,0.00013698,2]
[420164011,1775742649408,-500.0,0.00013698,2]
[420164012,1775742649418,-500.0,0.00013698,2]
[420164013,1775742649428,-500.0,0.00013698,2]
[420164014,1775742649438,-500.0,0.00013698,2]
[420164015,1775742649448,-500.0,0.00013699,2]
[420164016,1775742649459,-500.0,0.00013699,2]
[420164017,1775742649469,-500.0,0.00013699,2]
[420164018,1775742649478,-500.0,0.00013699,2]
[420164019,1775742649488,-354.54203982,0.00013699,2]
[420164020,1775742649498,-180.0,0.00013699,2]
[420164021,1775742649508,-2144.0,0.00013699,2]
[420164022,1775742649517,-150.0,0.00013699,2]
[420164023,1775742649527,-200.0,0.00013699,2]
[420164024,1775742649536,-2000.0,0.00013699,5]
[420164025,1775742649546,-158.67,0.00013699,2]
[420164026,1775742649556,-166.66,0.00013699,2]
[420164027,1775742649565,-1236.17,0.00013699,2]
[420164028,1775742649574,-1000.0,0.00013699,2]
[420164029,1775742649583,-177.22,0.00013699,2]
[420164030,1775742649593,-152.449163,0.00013699,2]
[420164031,1775742649603,-151.0,0.00013699,2]
[420164032,1775742649614,-151.0,0.00013699,2]
[420164033,1775742649624,-151.0,0.00013699,2]
[420164034,1775742649634,-170.593914,0.00013699,2]
[420164035,1775742649644,-170.593914,0.00013699,2]
[420164036,1775742649653,-170.593914,0.00013699,2]
[420164037,1775742649663,-170.593914,0.00013699,2]
[420164038,1775742649673,-170.593914,0.00013699,2]
[420164039,1775742649682,-170.593914,0.00013699,2]
[420164040,1775742649692,-170.593914,0.00013699,2]
[420164041,1775742649702,-170.593914,0.00013699,2]
[420164042,1775742649711,-170.593914,0.00013699,2]
[420164043,1775742649721,-170.593914,0.00013699,2]
[420164044,1775742649731,-170.593914,0.00013699,2]
[420164045,1775742649741,-170.593914,0.00013699,2]
[420164046,1775742649750,-151.0,0.00013699,2]
[420164047,1775742649760,-151.0,0.00013699,2]
[420164048,1775742649770,-151.0,0.00013699,2]
[420164049,1775742649780,-151.0,0.00013699,2]
[420164050,1775742649790,-151.0,0.00013699,2]
[420164051,1775742649802,-151.0,0.00013699,2]
[420164052,1775742649812,-151.0,0.00013699,2]
[420164053,1775742649822,-151.0,0.00013699,2]
[420164054,1775742649832,-151.0,0.00013699,2]
[420164055,1775742649842,-151.0,0.00013699,2]
[420164056,1775742649852,-151.0,0.00013699,2]
[420164057,1775742649862,-151.0,0.00013699,2]
[420164058,1775742649872,-151.0,0.00013699,2]
[420164059,1775742649881,-350.511526,0.00013699,2]
[420164060,1775742649891,-350.511526,0.00013699,2]
[420164061,1775742649901,-151.0,0.00013699,2]
[420164062,1775742649911,-350.511526,0.00013699,2]
[420164063,1775742649921,-151.0,0.00013699,2]
[420164064,1775742649931,-350.511526,0.00013699,2]
[420164065,1775742649941,-350.511526,0.00013699,2]
[420164066,1775742649952,-350.511526,0.00013699,2]
[420164067,1775742649962,-350.511526,0.00013699,2]
[420164068,1775742649974,-350.511526,0.00013699,2]
[420164069,1775742649984,-350.511526,0.00013699,2]
[420164070,1775742649994,-350.511526,0.00013699,2]
[420164071,1775742650004,-350.511526,0.00013699,2]
[420164072,1775742650014,-350.511526,0.00013699,2]
[420164073,1775742650025,-151.0,0.00013699,2]
[420164074,1775742650034,-151.0,0.00013699,2]
[420164075,1775742650044,-151.0,0.00013699,2]
[420164076,1775742650053,-151.0,0.00013699,2]
[420164077,1775742650063,-152.3556,0.00013699,2]
[420164078,1775742650073,-154.605629,0.00013699,2]
[420164079,1775742650083,-202.217071,0.00013699,2]
[420164080,1775742650093,-151.0,0.00013699,2]
[420164081,1775742650103,-151.0,0.00013699,2]
[420164082,1775742650113,-151.0,0.00013699,2]
[420164083,1775742650123,-151.0,0.00013699,2]
[420164084,1775742650133,-151.0,0.00013699,2]
[420164085,1775742650144,-151.0,0.00013699,2]
[420164086,1775742650154,-151.0,0.00013699,2]
[420164087,1775742650164,-151.0,0.00013699,2]
[420164088,1775742650174,-151.0,0.00013699,2]
[420164089,1775742650183,-151.0,0.00013699,2]
[420164090,1775742650193,-151.0,0.00013699,2]
[420164091,1775742650203,-151.0,0.00013699,2]
[420164092,1775742650212,-151.0,0.00013699,2]
[420164093,1775742650222,-151.0,0.00013699,2]
[420164094,1775742650232,-151.0,0.00013699,2]
[420164095,1775742650242,-151.0,0.00013699,2]
[420164096,1775742650251,-151.0,0.00013699,2]
[420164097,1775742650262,-151.0,0.00013699,2]
[420164098,1775742650272,-151.0,0.00013699,2]
[420164099,1775742650282,-151.0,0.00013699,2]
[420164100,1775742650292,-151.0,0.00013699,2]
[420164101,1775742650302,-151.0,0.00013699,2]
[420164102,1775742650311,-151.0,0.00013699,2]
[420164103,1775742650322,-151.0,0.00013699,2]
[420164104,1775742650331,-151.0,0.00013699,2]
[420164105,1775742650341,-151.0,0.00013699,2]
[420164106,1775742650351,-230.834476,0.00013699,2]
[420164107,1775742650362,-193.377137,0.00013699,2]
[420164108,1775742650372,-193.377137,0.00013699,2]
[420164109,1775742650382,-193.377137,0.00013699,2]
[420164110,1775742650392,-193.377137,0.00013699,2]
[420164111,1775742650403,-193.377137,0.00013699,2]
[420164112,1775742650414,-193.377137,0.00013699,2]
[420164113,1775742650424,-193.377137,0.00013699,2]
[420164114,1775742650435,-193.377137,0.00013699,2]
[420164115,1775742650445,-193.377137,0.00013699,2]
[420164116,1775742650455,-193.377137,0.00013699,2]
[420164117,1775742650465,-193.377137,0.00013699,2]
[420164118,1775742650476,-193.377137,0.00013699,2]
[420164119,1775742650486,-151.0,0.00013699,2]
[420164120,1775742650496,-151.0,0.00013699,2]
[420164121,1775742650506,-151.0,0.00013699,2]
[420164122,1775742650516,-151.0,0.00013699,2]
[420164123,1775742650526,-151.0,0.00013699,2]
[420164124,1775742650536,-151.000011,0.00013699,2]
[420164125,1775742650545,-151.0,0.00013699,2]
[420164126,1775742650555,-152.342806,0.00013699,2]
[420164127,1775742650565,-151.0,0.00013699,2]
[420164128,1775742650575,-151.0,0.00013699,2]
[420164129,1775742650585,-151.0,0.00013699,2]
[420164130,1775742650595,-151.0,0.00013699,2]
[420164131,1775742650604,-151.0,0.00013699,2]
[420164132,1775742650614,-151.0,0.00013699,2]
[420164133,1775742650624,-206.258725,0.00013699,2]
[420164134,1775742650634,-151.0,0.00013699,2]
[420164135,1775742650644,-151.0,0.00013699,2]
[420164136,1775742650654,-151.0,0.00013699,2]
[420164137,1775742650664,-151.0,0.00013699,2]
[420164138,1775742650674,-151.0,0.00013699,2]
[420164139,1775742650684,-151.0,0.00013699,2]
[420164140,1775742650694,-151.0,0.00013699,2]
[420164141,1775742650705,-151.0,0.00013699,2]
[420164142,1775742650714,-151.0,0.00013699,2]
[420164143,1775742650724,-151.0,0.00013699,2]
[420164144,1775742650734,-151.0,0.00013699,2]
[420164145,1775742650745,-151.0,0.00013699,2]
[420164146,1775742650756,-151.0,0.00013699,2]
[420164147,1775742650765,-151.0,0.00013699,2]
[420164148,1775742650775,-151.0,0.00013699,2]
[420164149,1775742650787,-151.0,0.00013699,2]
[420164150,1775742650798,-151.0,0.00013699,2]
[420164151,1775742650809,-151.0,0.00013699,2]
[420164152,1775742650820,-151.0,0.00013699,2]
[420164153,1775742650830,-151.0,0.00013699,2]
[420164154,1775742650840,-151.0,0.00013699,2]
[420164155,1775742650850,-151.0,0.00013699,2]
[420164156,1775742650861,-151.0,0.00013699,2]
[420164157,1775742650871,-151.0,0.00013699,2]
[420164158,1775742650882,-151.0,0.00013699,2]
[420164159,1775742650891,-188.819642,0.00013699,2]
[420164160,1775742650901,-151.0,0.00013699,2]
[420164161,1775742650911,-151.0,0.00013699,2]
[420164162,1775742650922,-151.0,0.00013699,2]
[420164163,1775742650932,-229.62413,0.00013699,2]
[420164164,1775742650942,-151.0,0.00013699,2]
[420164165,1775742650953,-151.0,0.00013699,2]
[420164166,1775742650963,-151.0,0.00013699,2]
[420164167,1775742650973,-151.0,0.00013699,2]
[420164168,1775742650984,-151.0,0.00013699,2]
[420164169,1775742650994,-274.122782,0.00013699,2]
[420164170,1775742651005,-151.0,0.00013699,2]
[420164171,1775742651015,-151.0,0.00013699,2]
[420164172,1775742651026,-151.0,0.00013699,2]
[420164173,1775742651036,-160.045191,0.00013699,2]
[420164174,1775742651045,-151.0,0.00013699,2]
[420164175,1775742651055,-151.0,0.00013699,2]
[420164176,1775742651064,-151.0,0.00013699,2]
[420164177,1775742651074,-151.0,0.00013699,2]
[420164178,1775742651084,-248.45376,0.00013699,2]
[420164179,1775742651094,-151.0,0.00013699,2]
[420164180,1775742651104,-151.0,0.00013699,2]
[420164181,1775742651113,-151.0,0.00013699,2]
[420164182,1775742651123,-151.0,0.00013699,2]
[420164183,1775742651132,-151.0,0.00013699,2]
[420164184,1775742651141,-151.0,0.00013699,2]
[420164185,1775742651150,-151.0,0.00013699,2]
[420164186,1775742651159,-151.0,0.00013699,2]
[420164187,1775742651169,-228.517343,0.00013699,2]
[420164188,1775742651179,-151.0,0.00013699,2]
[420164189,1775742651189,-151.0,0.00013699,2]
[420164190,1775742651199,-151.0,0.00013699,2]
[420164191,1775742651210,-151.0,0.00013699,2]
[420164192,1775742651220,-151.0,0.00013699,2]
[420164193,1775742651231,-151.0,0.00013699,2]
[420164194,1775742651243,-151.0,0.00013699,2]
[420164195,1775742651253,-300.354092,0.00013699,2]
[420164196,1775742651264,-151.0,0.00013699,2]
[420164197,1775742651277,-151.0,0.00013699,2]
[420164198,1775742651287,-151.0,0.00013699,2]
[420164199,1775742651298,-151.0,0.00013699,2]
[420164200,1775742651309,-151.0,0.00013699,2]
[420164201,1775742651319,-151.0,0.00013699,2]
[420164202,1775742651330,-151.0,0.00013699,2]
[420164203,1775742651340,-151.0,0.00013699,2]
[420164204,1775742651350,-152.311392,0.00013699,2]
[420164205,1775742651360,-190.427889,0.00013699,2]
[420164206,1775742651373,-190.427889,0.00013699,2]
[420164207,1775742651383,-190.427889,0.00013699,2]
[420164208,1775742651394,-190.427889,0.00013699,2]
[420164209,1775742651404,-190.427889,0.00013699,2]
[420164210,1775742651415,-190.427889,0.00013699,2]
[420164211,1775742651425,-190.427889,0.00013699,2]
[420164212,1775742651436,-190.427889,0.00013699,2]
[420164213,1775742651447,-190.427889,0.00013699,2]
[420164214,1775742651458,-190.427889,0.00013699,2]
[420164215,1775742651469,-190.427889,0.00013699,2]
[420164216,1775742651480,-190.427889,0.00013699,2]
[420164217,1775742651491,-1484.177168,0.00013699,2]
[420164218,1775742651502,-1484.177168,0.00013699,2]
[420164219,1775742651513,-1484.177168,0.00013699,2]
[420164220,1775742651524,-1484.177168,0.00013699,2]
[420164221,1775742651535,-151.0,0.00013699,2]
[420164222,1775742651546,-1484.177168,0.00013699,2]
[420164223,1775742651557,-1484.177168,0.00013699,2]
[420164224,1775742651567,-1484.177168,0.00013699,2]
[420164225,1775742651578,-1484.177168,0.00013699,2]
[420164226,1775742651588,-1484.177168,0.00013699,2]
[420164227,1775742651599,-151.0,0.00013699,2]
[420164228,1775742651608,-1484.177168,0.00013699,2]
[420164229,1775742651619,-151.0,0.00013699,2]
[420164230,1775742651629,-1484.177168,0.00013699,2]